fUST/lending_fUST_20240429
["ID","MTS","AMOUNT","RATE_DAILY","PERIOD"]
[324836074,1714365034470,-500.0,0.00013698,2]
[324836075,1714365034479,-1404.59,0.00013698,2]
[324836076,1714365034489,-500.0,0.00013698,2]
[324836077,1714365034499,-500.0,0.00013698,2]
[324836078,1714365034507,-500.0,0.00013698,2]
[324836079,1714365034517,-1154.61,0.00013698,2]
[324836080,1714365034526,-1633.41,0.00013698,2]
[324836081,1714365034534,-500.0,0.00013698,2]
[324836082,1714365034543,-500.0,0.00013698,2]
[324836083,1714365034552,-500.0,0.00013698,2]
[324836084,1714365034561,-501.19,0.00013698,2]
[324836085,1714365034570,-500.0,0.00013698,2]
[324836086,1714365034580,-979.1,0.00013698,2]
[324836087,1714365034589,-500.0,0.00013698,2]
[324836088,1714365034598,-500.0,0.00013698,2]
[324836089,1714365034607,-1916.14,0.00013698,2]
[324836090,1714365034616,-709.88,0.00013698,2]
[324836091,1714365034626,-759.7,0.00013698,2]
[324836092,1714365034635,-638.23,0.00013698,2]
[324836093,1714365034644,-500.0,0.00013698,2]
[324836094,1714365034653,-295.2687458,0.00013698,2]
[324836095,1714365034662,-1044.52,0.00013698,2]
[324836096,1714365034671,-500.0,0.00013698,2]
[324836097,1714365034681,-500.0,0.00013698,2]
[324836098,1714365034690,-601.12,0.00013698,2]
[324836099,1714365034699,-500.0,0.00013698,2]
[324836100,1714365034709,-589.12,0.00013698,2]
[324836101,1714365034719,-602.81,0.00013698,2]
[324836102,1714365034728,-500.0,0.00013698,2]
[324836103,1714365034738,-588.99,0.00013698,2]
[324836104,1714365034747,-1543.2,0.00013698,2]
[324836105,1714365034756,-500.0,0.00013698,2]
[324836106,1714365034765,-505.7,0.00013698,2]
[324836107,1714365034774,-500.0,0.00013698,2]
[324836108,1714365034783,-500.0,0.00013698,2]
[324836109,1714365034794,-1694.01,0.00013698,2]
[324836110,1714365034803,-500.0,0.00013698,2]
[324836111,1714365034812,-305.70787731,0.00013698,2]
[324836112,1714365034822,-500.0,0.00013698,2]
[324836113,1714365034835,-742.39,0.00013698,2]
[324836114,1714365034844,-500.0,0.00013698,2]
[324836115,1714365034854,-680.17,0.00013698,2]
[324836116,1714365034863,-500.0,0.00013698,2]
[324836117,1714365034872,-500.0,0.00013698,2]
[324836118,1714365034881,-500.0,0.00013698,2]
[324836119,1714365034891,-500.0,0.00013698,2]
[324836120,1714365034900,-500.0,0.00013698,2]
[324836121,1714365034910,-500.0,0.00013698,2]
[324836122,1714365034920,-500.0,0.00013698,2]
[324836123,1714365034929,-2155.22,0.00013698,2]
[324836124,1714365034939,-500.0,0.00013698,2]
[324836125,1714365034948,-500.0,0.00013698,2]
[324836126,1714365034957,-1462.84,0.00013698,2]
[324836127,1714365034966,-1984.59,0.00013698,2]
[324836128,1714365034975,-1366.58,0.00013698,2]
[324836129,1714365034984,-704.71,0.00013698,2]
[324836130,1714365034994,-500.0,0.00013698,2]
[324836131,1714365035003,-500.0,0.00013698,2]
[324836132,1714365035012,-2986.7,0.00013698,2]
[324836133,1714365035022,-500.0,0.00013698,2]
[324836134,1714365035031,-1738.97,0.00013698,2]
[324836135,1714365035040,-500.0,0.00013698,2]
[324836136,1714365035049,-1094.35,0.00013698,2]
[324836137,1714365035058,-559.81,0.00013698,2]
[324836138,1714365035068,-500.0,0.00013698,2]
[324836139,1714365035078,-540.76487656,0.00013698,2]
[324836140,1714365035088,-845.41,0.00013698,2]
[324836141,1714365035096,-517.95,0.00013698,2]
[324836142,1714365035106,-500.0,0.00013698,2]
[324836143,1714365035115,-500.0,0.00013698,2]
[324836144,1714365035125,-500.0,0.00013698,2]
[324836145,1714365035134,-500.0,0.00013698,2]
[324836146,1714365035144,-500.0,0.00013698,2]
[324836147,1714365035154,-602.6,0.00013698,2]
[324836148,1714365035163,-500.0,0.00013698,2]
[324836149,1714365035172,-814.69,0.00013698,2]
[324836150,1714365035182,-500.0,0.00013698,2]
[324836151,1714365035192,-500.0,0.00013698,2]
[324836152,1714365035201,-500.0,0.00013698,2]
[324836153,1714365035211,-725.21,0.00013698,2]
[324836154,1714365035220,-500.0,0.00013698,2]
[324836155,1714365035229,-500.0,0.00013698,2]
[324836156,1714365035239,-500.0,0.00013698,2]
[324836157,1714365035248,-443.49878223,0.00013698,2]
[324836190,1714365037816,-2000.0,0.00013598,2]
[324836191,1714365037827,-56.50121777,0.00013698,2]
[324836192,1714365037842,-220.30316345,0.00013698,2]
[324836193,1714365037851,-500.0,0.00013698,2]
[324836194,1714365037860,-419.38114285,0.00013698,2]
[324836195,1714365037873,-80.61885715,0.00013698,2]
[324836196,1714365037883,-500.0,0.00013698,2]
[324836197,1714365037892,-38.61359668,0.00013698,2]
[324836198,1714365038157,19193.57611322,0.00013011,2]
[324836254,1714365040066,-253.08623587,0.00013698,2]
[324836425,1714365042939,-556.48016745,0.00013698,2]
[324836426,1714365042948,-1132.1,0.00013698,2]
[324836427,1714365042957,-500.0,0.00013698,2]
[324836428,1714365042966,-500.0,0.00013698,2]
[324836429,1714365042975,-500.0,0.00013698,2]
[324836430,1714365042985,-500.0,0.00013698,2]
[324836431,1714365042994,-518.13411356,0.00013698,2]
[324836432,1714365043003,-562.49542159,0.00013698,2]
[324836433,1714365043012,-126.0951816,0.00013698,2]
[324836469,1714365046220,-204.92944352,0.00013697,2]
[324836471,1714365046229,-196.0443961,0.00013697,2]
[324836473,1714365046239,-500.0,0.00013698,2]
[324836476,1714365046248,-500.0,0.00013698,2]
[324836477,1714365046258,-500.0,0.00013698,2]
[324836479,1714365046267,-532.93308248,0.00013698,2]
[324836482,1714365046276,-13689.93,0.00013698,2]
[324836483,1714365046285,-500.0,0.00013698,2]
[324836485,1714365046294,-500.0,0.00013698,2]
[324836487,1714365046303,-500.0,0.00013698,2]
[324836489,1714365046312,-1642.21,0.00013698,2]
[324836492,1714365046321,-534.49,0.00013698,2]
[324836494,1714365046330,-500.0,0.00013698,2]
[324836496,1714365046340,-725.28,0.00013698,2]
[324836497,1714365046349,-500.0,0.00013698,2]
[324836499,1714365046357,-500.0,0.00013698,2]
[324836501,1714365046366,-1556.42,0.00013698,2]
[324836503,1714365046375,-500.0,0.00013698,2]
[324836505,1714365046384,-975.79,0.00013698,2]
[324836507,1714365046393,-500.0,0.00013698,2]
[324836509,1714365046402,-500.0,0.00013698,2]
[324836511,1714365046411,-411.27000502,0.00013698,2]
[324836513,1714365046420,-3615.89,0.00013698,2]
[324836515,1714365046429,-500.0,0.00013698,2]
[324836517,1714365046438,-500.0,0.00013698,2]
[324836519,1714365046447,-1118.57,0.00013698,2]
[324836521,1714365046456,-500.0,0.00013698,2]
[324836523,1714365046465,-2806.13128591,0.00013698,2]
[324836526,1714365046477,-735.7022111,0.00013698,2]
[324836542,1714365046619,-3938.24855266,0.00013698,2]
[324836547,1714365046651,-1167.99795033,0.00013698,2]
[324836549,1714365046660,-364.84385795,0.00013698,2]
[324836598,1714365048178,285.87100414,0.00013011,2]
[324836599,1714365083930,198.1512273,0.00012713,2]
[324836600,1714365424639,666.34737877,0.0001,2]
[324836601,1714365444430,512.72964857,9.999e-05,2]
[324836602,1714365451442,512.72964857,9.999e-05,2]
[324836605,1714365745718,281.45739538,9.999e-05,2]
[324836606,1714365758182,284.93516068,9.999e-05,2]
[324836607,1714365786352,2446.82864112,9.999e-05,2]
[324836609,1714365935117,-947.8650571,0.00012126,2]
[324836610,1714365935138,-7478.86498387,0.00012506,2]
[324836615,1714366028097,-1463.8258861,0.00012126,2]
[324836616,1714366028119,-226.83502459,0.00012506,2]
[324836617,1714366028138,-300.0,0.0001264,2]
[324836618,1714366028160,-300.0,0.0001264,2]
[324836619,1714366028182,-271.78422744,0.00012641,2]
[324836621,1714366049115,-6233.35190254,0.00012315,2]
[324836625,1714366148131,-250.0,0.00012232,2]
[324836626,1714366148156,-300.0,0.00012314,2]
[324836627,1714366148177,-300.0,0.00012314,2]
[324836628,1714366148199,-18666.64809746,0.00012315,2]
[324836629,1714366152099,-156.44509548,0.000128,2]
[324836630,1714366152121,-156.44509547,0.00012867,2]
[324836631,1714366152141,-734.566987,0.000129,2]
[324836632,1714366152163,-156.44509547,0.00012933,2]
[324836633,1714366152183,-156.44509547,0.00013,2]
[324836634,1714366152202,-155.06922141,0.00013,2]
[324836635,1714366152222,-153.0,0.00013,2]
[324836636,1714366152243,-156.44509547,0.00013066,2]
[324836637,1714366152263,-156.44509547,0.00013133,2]
[324836638,1714366152283,-153.0,0.00013178,2]
[324836639,1714366152301,-156.44509547,0.00013199,2]
[324836640,1714366152321,-156.44509547,0.00013266,2]
[324836641,1714366154528,153.0,0.00013178,2]
[324836642,1714366176800,13311.1813273,0.00012645,2]
[324836643,1714366213872,155.11034974,0.00013046,2]
[324836644,1714366214068,154.84515485,0.00013009,2]
[324836645,1714366216201,154.79876161,0.00013178,2]
[324836666,1714366232067,-156.44509547,0.00013332,2]
[324836667,1714366232076,-156.44509547,0.00013399,2]
[324836668,1714366232086,-156.44509547,0.00013465,2]
[324836669,1714366232096,-1295.95718468,0.000135,2]
[324836670,1714366232106,-1295.95718467,0.00013525,2]
[324836671,1714366232117,-156.44509547,0.00013532,2]
[324836672,1714366232128,-1295.95718467,0.00013549,2]
[324836673,1714366232138,-1295.95718467,0.00013574,2]
[324836674,1714366232147,-2000.0,0.00013596,2]
[324836675,1714366232156,-300.0,0.00013597,2]
[324836676,1714366232167,-300.0,0.00013597,2]
[324836677,1714366232180,-156.44509547,0.00013598,2]
[324836678,1714366232189,-1295.95718467,0.00013598,2]
[324836679,1714366232198,-44444.0,0.00013598,2]
[324836680,1714366232208,-153.0,0.000136,2]
[324836681,1714366232219,-155.1670489,0.00013694,2]
[324836682,1714366232229,-895.06792294,0.00013694,2]
[324836683,1714366232238,-2806.69914,0.00013694,2]
[324836684,1714366232249,-5752.96581778,0.00013694,2]
[324836685,1714366232259,-332.90691997,0.00013694,2]
[324836686,1714366232269,-154.86061926,0.00013694,2]
[324836687,1714366232278,-283.38303378,0.00013694,2]
[324836688,1714366232288,-4289.31098686,0.00013694,2]
[324836689,1714366232298,-204.23558872,0.00013694,2]
[324836690,1714366232308,-206.23930448,0.00013694,2]
[324836691,1714366232318,-2626.30439442,0.00013694,2]
[324836692,1714366232327,-158.88283105,0.00013694,2]
[324836693,1714366232338,-212.26666393,0.00013694,2]
[324836694,1714366232348,-5806.43566908,0.00013695,2]
[324836695,1714366232358,-155.06896454,0.00013696,2]
[324836696,1714366232367,-59200.3865925,0.00013696,2]
[324836697,1714366232377,-155.05459913,0.00013697,2]
[324836698,1714366232386,-5000.0,0.00013697,2]
[324836699,1714366232396,-500.0,0.00013698,2]
[324836700,1714366232407,-500.0,0.00013698,2]
[324836701,1714366232416,-500.0,0.00013698,2]
[324836702,1714366232427,-500.0,0.00013698,2]
[324836703,1714366232437,-500.0,0.00013698,2]
[324836704,1714366232448,-500.0,0.00013698,2]
[324836705,1714366232459,-500.0,0.00013698,2]
[324836706,1714366232468,-210.85474056,0.00013698,2]
[324836707,1714366232478,-285.70800868,0.00013698,2]
[324836708,1714366232487,-176.60487412,0.00013698,2]
[324836709,1714366232496,-500.0,0.00013698,2]
[324836710,1714366232506,-500.0,0.00013698,2]
[324836711,1714366232516,-500.0,0.00013698,2]
[324836712,1714366232525,-500.0,0.00013698,2]
[324836713,1714366232534,-500.0,0.00013698,2]
[324836714,1714366232543,-500.0,0.00013698,2]
[324836715,1714366232553,-500.0,0.00013698,2]
[324836716,1714366232563,-612.26,0.00013698,2]
[324836717,1714366232572,-500.0,0.00013698,2]
[324836718,1714366232581,-500.0,0.00013698,2]
[324836719,1714366232590,-500.0,0.00013698,2]
[324836720,1714366232600,-500.0,0.00013698,2]
[324836721,1714366232749,-500.0,0.00013698,2]
[324836722,1714366232763,-601.23,0.00013698,2]
[324836723,1714366232772,-573.65,0.00013698,2]
[324836724,1714366232782,-500.0,0.00013698,2]
[324836725,1714366232791,-500.0,0.00013698,2]
[324836726,1714366232800,-500.0,0.00013698,2]
[324836727,1714366232810,-728.04,0.00013698,2]
[324836728,1714366232820,-243.66522956,0.00013698,2]
[324836729,1714366232829,-500.0,0.00013698,2]
[324836730,1714366232838,-500.0,0.00013698,2]
[324836731,1714366232848,-500.0,0.00013698,2]
[324836732,1714366232857,-577.7,0.00013698,2]
[324836733,1714366232867,-500.0,0.00013698,2]
[324836734,1714366232877,-500.0,0.00013698,2]
[324836735,1714366232887,-564.45,0.00013698,2]
[324836736,1714366232896,-1037.9,0.00013698,2]
[324836737,1714366232906,-500.0,0.00013698,2]
[324836738,1714366232916,-500.0,0.00013698,2]
[324836739,1714366232925,-500.0,0.00013698,2]
[324836740,1714366232934,-500.0,0.00013698,2]
[324836741,1714366232944,-500.0,0.00013698,2]
[324836742,1714366232953,-564.58,0.00013698,2]
[324836743,1714366232963,-500.0,0.00013698,2]
[324836744,1714366232972,-531.22243147,0.00013698,2]
[324836745,1714366232982,-500.0,0.00013698,2]
[324836746,1714366232991,-500.0,0.00013698,2]
[324836747,1714366233001,-427.23970172,0.00013698,2]
[324836748,1714366233011,-621.62077351,0.00013698,2]
[324836749,1714366233021,-500.0,0.00013698,2]
[324836750,1714366233030,-500.0,0.00013698,2]
[324836751,1714366233039,-711.46,0.00013698,2]
[324836752,1714366233048,-500.0,0.00013698,2]
[324836753,1714366233057,-500.0,0.00013698,2]
[324836754,1714366233067,-651.83,0.00013698,2]
[324836755,1714366233077,-352.18046222,0.00013698,2]
[324836756,1714366233086,-500.0,0.00013698,2]
[324836757,1714366233095,-675.35,0.00013698,2]
[324836758,1714366233104,-500.0,0.00013698,2]
[324836759,1714366233113,-557.95180536,0.00013698,2]
[324836760,1714366233122,-589.49,0.00013698,2]
[324836761,1714366233131,-500.0,0.00013698,2]
[324836762,1714366233141,-500.0,0.00013698,2]
[324836763,1714366233150,-262.13422985,0.00013698,2]
[324836764,1714366233159,-500.0,0.00013698,2]
[324836765,1714366233168,-500.0,0.00013698,2]
[324836766,1714366233181,-500.0,0.00013698,2]
[324836767,1714366233190,-812.84,0.00013698,2]
[324836768,1714366233199,-500.0,0.00013698,2]
[324836769,1714366233208,-1132.97,0.00013698,2]
[324836770,1714366233217,-387.17618278,0.00013698,2]
[324836771,1714366233226,-500.0,0.00013698,2]
[324836772,1714366233235,-500.0,0.00013698,2]
[324836773,1714366233245,-500.0,0.00013698,2]
[324836774,1714366233255,-503.83484402,0.00013698,2]
[324836775,1714366233265,-976.87,0.00013698,2]
[324836776,1714366233274,-773.76,0.00013698,2]
[324836777,1714366233283,-525.22182693,0.00013698,2]
[324836778,1714366233292,-710.47,0.00013698,2]
[324836779,1714366233301,-500.0,0.00013698,2]
[324836780,1714366233310,-500.0,0.00013698,2]
[324836781,1714366233319,-559.4,0.00013698,2]
[324836782,1714366233328,-500.0,0.00013698,2]
[324836783,1714366233338,-230.3143349,0.00013698,2]
[324836784,1714366233348,-500.0,0.00013698,2]
[324836785,1714366233357,-500.0,0.00013698,2]
[324836786,1714366233366,-500.0,0.00013698,2]
[324836787,1714366233375,-151.0,0.00013698,2]
[324836788,1714366233384,-723.78,0.00013698,2]
[324836789,1714366233394,-500.0,0.00013698,2]
[324836790,1714366233403,-500.0,0.00013698,2]
[324836791,1714366233412,-500.0,0.00013698,2]
[324836792,1714366233421,-435.6600224,0.00013698,2]
[324836793,1714366233431,-500.0,0.00013698,2]
[324836794,1714366233441,-695.06,0.00013698,2]
[324836795,1714366233451,-500.0,0.00013698,2]
[324836796,1714366233461,-500.0,0.00013698,2]
[324836797,1714366233470,-1506.59,0.00013698,2]
[324836798,1714366233479,-500.0,0.00013698,2]
[324836799,1714366233489,-1491.57,0.00013698,2]
[324836800,1714366233498,-500.0,0.00013698,2]
[324836801,1714366233509,-254.98552436,0.00013698,2]
[324836802,1714366233518,-599.31,0.00013698,2]
[324836803,1714366233527,-500.0,0.00013698,2]
[324836804,1714366233536,-20.80417906,0.00013698,2]
[324836805,1714366233567,179.79521238,0.00013178,2]
[324836806,1714366233578,-972.39582094,0.00013698,2]
[324836807,1714366233588,-500.0,0.00013698,2]
[324836808,1714366233597,-500.0,0.00013698,2]
[324836809,1714366233606,-500.0,0.00013698,2]
[324836810,1714366233614,-500.0,0.00013698,2]
[324836811,1714366233623,-500.0,0.00013698,2]
[324836812,1714366233632,-500.0,0.00013698,2]
[324836813,1714366233641,-500.0,0.00013698,2]
[324836814,1714366233651,-507.89751234,0.00013698,2]
[324836815,1714366233659,-500.0,0.00013698,2]
[324836816,1714366233669,-938.31,0.00013698,2]
[324836817,1714366233677,-500.0,0.00013698,2]
[324836818,1714366233686,-500.0,0.00013698,2]
[324836819,1714366233695,-500.0,0.00013698,2]
[324836820,1714366233703,-733.19,0.00013698,2]
[324836821,1714366233713,-500.0,0.00013698,2]
[324836822,1714366233722,-500.0,0.00013698,2]
[324836823,1714366233731,-502.02910402,0.00013698,2]
[324836824,1714366233739,-501.34807716,0.00013698,2]
[324836825,1714366233748,-936.06,0.00013698,2]
[324836826,1714366233758,-500.0,0.00013698,2]
[324836827,1714366233767,-500.0,0.00013698,2]
[324836828,1714366233777,-950.08,0.00013698,2]
[324836829,1714366233786,-1408.43,0.00013698,2]
[324836830,1714366233796,-500.0,0.00013698,2]
[324836831,1714366233806,-500.0,0.00013698,2]
[324836832,1714366233817,-565.44007342,0.00013698,2]
[324836833,1714366233829,-500.0,0.00013698,2]
[324836834,1714366233838,-807.25,0.00013698,2]
[324836835,1714366233848,-1106.5,0.00013698,2]
[324836836,1714366233858,-1637.01,0.00013698,2]
[324836837,1714366233867,-500.80871262,0.00013698,2]
[324836838,1714366233876,-500.0,0.00013698,2]
[324836839,1714366233885,-719.63,0.00013698,2]
[324836840,1714366233895,-500.0,0.00013698,2]
[324836841,1714366233903,-502.82707399,0.00013698,2]
[324836842,1714366233912,-908.79,0.00013698,2]
[324836843,1714366233922,-504.10150551,0.00013698,2]
[324836844,1714366233931,-710.62,0.00013698,2]
[324836845,1714366233939,-1734.89,0.00013698,2]
[324836846,1714366233948,-283.54768481,0.00013698,2]
[324836847,1714366233957,-611.64,0.00013698,2]
[324836848,1714366233966,-500.0,0.00013698,2]
[324836849,1714366233976,-500.0,0.00013698,2]
[324836850,1714366233985,-500.0,0.00013698,2]
[324836851,1714366233996,-187.2955991,0.00013698,2]
[324836852,1714366234005,-500.0,0.00013698,2]
[324836853,1714366234015,-500.0,0.00013698,2]
[324836854,1714366234026,-268.82509237,0.00013698,2]
[324836855,1714366234035,-1000.99,0.00013698,2]
[324836856,1714366234046,-500.0,0.00013698,2]
[324836857,1714366234057,-500.15840844,0.00013698,2]
[324836858,1714366234066,-601.67,0.00013698,2]
[324836859,1714366234076,-500.0,0.00013698,2]
[324836860,1714366234085,-500.0,0.00013698,2]
[324836861,1714366234095,-500.41232546,0.00013698,2]
[324836862,1714366234105,-500.0,0.00013698,2]
[324836863,1714366234115,-500.0,0.00013698,2]
[324836864,1714366234124,-500.0,0.00013698,2]
[324836865,1714366234134,-504.21422262,0.00013698,2]
[324836866,1714366234143,-500.0,0.00013698,2]
[324836867,1714366234153,-502.95818122,0.00013698,2]
[324836868,1714366234163,-500.0,0.00013698,2]
[324836869,1714366234177,-500.0,0.00013698,2]
[324836870,1714366234187,-1156.87,0.00013698,2]
[324836871,1714366234195,-829.67,0.00013698,2]
[324836872,1714366234205,-500.0,0.00013698,2]
[324836873,1714366234215,-500.0,0.00013698,2]
[324836874,1714366234225,-500.0,0.00013698,2]
[324836875,1714366234234,-500.0,0.00013698,2]
[324836876,1714366234244,-500.0,0.00013698,2]
[324836877,1714366234253,-500.0,0.00013698,2]
[324836878,1714366234264,-1694.3,0.00013698,2]
[324836879,1714366234273,-500.0,0.00013698,2]
[324836880,1714366234283,-504.24236024,0.00013698,2]
[324836881,1714366234292,-500.0,0.00013698,2]
[324836882,1714366234301,-500.0,0.00013698,2]
[324836883,1714366234310,-646.36,0.00013698,2]
[324836884,1714366234319,-228.88382865,0.00013698,2]
[324836885,1714366234328,-796.66,0.00013698,2]
[324836886,1714366234339,-688.47,0.00013698,2]
[324836887,1714366234348,-500.0,0.00013698,2]
[324836888,1714366234358,-500.0,0.00013698,2]
[324836889,1714366234367,-500.0,0.00013698,2]
[324836890,1714366234376,-1401.89,0.00013698,2]
[324836891,1714366234385,-500.0,0.00013698,2]
[324836892,1714366234394,-562.8,0.00013698,2]
[324836893,1714366234403,-500.0,0.00013698,2]
[324836894,1714366234412,-500.0,0.00013698,2]
[324836895,1714366234422,-1901.9,0.00013698,2]
[324836896,1714366234431,-500.0,0.00013698,2]
[324836897,1714366234440,-500.0,0.00013698,2]
[324836898,1714366234449,-500.0,0.00013698,2]
[324836899,1714366234458,-1309.64,0.00013698,2]
[324836900,1714366234469,-501.68995816,0.00013698,2]
[324837330,1714366243295,-108.04004184,0.00013698,2]
[324837332,1714366243305,-720.65,0.00013698,2]
[324837334,1714366243314,-500.0,0.00013698,2]
[324837336,1714366243323,-2862.25,0.00013698,2]
[324837348,1714366243454,-500.0,0.00013698,2]
[324837350,1714366243464,-500.0,0.00013698,2]
[324837352,1714366243474,-631.76,0.00013698,2]
[324837354,1714366243484,-1048.75,0.00013698,2]
[324837355,1714366243498,-500.0,0.00013698,2]
[324837357,1714366243515,-1666.51,0.00013698,2]
[324837359,1714366243526,-500.0,0.00013698,2]
[324837361,1714366243536,-500.0,0.00013698,2]
[324837362,1714366243545,-500.0,0.00013698,2]
[324837364,1714366243554,-500.0,0.00013698,2]
[324837366,1714366243563,-500.0,0.00013698,2]
[324837368,1714366243571,-500.0,0.00013698,2]
[324837369,1714366243580,-500.0,0.00013698,2]
[324837371,1714366243590,-533.43,0.00013698,2]
[324837373,1714366243599,-2069.39,0.00013698,2]
[324837375,1714366243608,-500.0,0.00013698,2]
[324837377,1714366243617,-500.0,0.00013698,2]
[324837378,1714366243626,-577.49,0.00013698,2]
[324837380,1714366243635,-810.19,0.00013698,2]
[324837382,1714366243645,-606.01796656,0.00013698,2]
[324837384,1714366243654,-500.0,0.00013698,2]
[324837386,1714366243663,-500.0,0.00013698,2]
[324837387,1714366243672,-500.0,0.00013698,2]
[324837389,1714366243681,-500.0,0.00013698,2]
[324837391,1714366243690,-500.0,0.00013698,2]
[324837393,1714366243699,-780.75,0.00013698,2]
[324837395,1714366243707,-500.0,0.00013698,2]
[324837396,1714366243717,-500.0,0.00013698,2]
[324837398,1714366243726,-500.0,0.00013698,2]
[324837400,1714366243736,-500.0,0.00013698,2]
[324837402,1714366243745,-500.0,0.00013698,2]
[324837404,1714366243754,-500.0,0.00013698,2]
[324837406,1714366243763,-507.32802336,0.00013698,2]
[324837408,1714366243772,-694.99,0.00013698,2]
[324837410,1714366243782,-593.39466437,0.00013698,2]
[324837411,1714366243791,-500.0,0.00013698,2]
[324837413,1714366243800,-500.0,0.00013698,2]
[324837415,1714366243809,-104.09592735,0.00013698,2]
[324837625,1714366246145,-395.90407265,0.00013698,2]
[324837627,1714366246155,-500.0,0.00013698,2]
[324837629,1714366246165,-500.0,0.00013698,2]
[324837632,1714366246177,-500.0,0.00013698,2]
[324837634,1714366246187,-500.0,0.00013698,2]
[324837636,1714366246196,-523.85162725,0.00013698,2]
[324837637,1714366246206,-592.91,0.00013698,2]
[324837640,1714366246215,-500.0,0.00013698,2]
[324837642,1714366246226,-500.0,0.00013698,2]
[324837644,1714366246235,-500.0,0.00013698,2]
[324837646,1714366246244,-500.0,0.00013698,2]
[324837647,1714366246253,-500.0,0.00013698,2]
[324837650,1714366246264,-500.0,0.00013698,2]
[324837652,1714366246274,-281.07032197,0.00013698,2]
[324837654,1714366246283,-500.0,0.00013698,2]
[324837656,1714366246292,-282.39252065,0.00013698,2]
[324837657,1714366246301,-500.0,0.00013698,2]
[324837659,1714366246311,-500.0,0.00013698,2]
[324837661,1714366246320,-500.0,0.00013698,2]
[324837664,1714366246330,-500.0,0.00013698,2]
[324837666,1714366246339,-500.0,0.00013698,2]
[324837668,1714366246348,-1134.16,0.00013698,2]
[324837670,1714366246358,-500.0,0.00013698,2]
[324837672,1714366246367,-500.0,0.00013698,2]
[324837674,1714366246379,-509.49707468,0.00013698,2]
[324837676,1714366246395,-500.0,0.00013698,2]
[324837679,1714366246411,-500.0,0.00013698,2]
[324837682,1714366246423,-500.0,0.00013698,2]
[324837684,1714366246437,-471.65007734,0.00013698,2]
[324837687,1714366246452,-500.0,0.00013698,2]
[324837689,1714366246466,-500.0,0.00013698,2]
[324837692,1714366246480,-3465.23,0.00013698,2]
[324837694,1714366246495,-500.0,0.00013698,2]
[324837697,1714366246511,-512.22,0.00013698,2]
[324837699,1714366246524,-500.0,0.00013698,2]
[324837702,1714366246537,-935.13,0.00013698,2]
[324837704,1714366246551,-500.0,0.00013698,2]
[324837707,1714366246564,-500.0,0.00013698,2]
[324837709,1714366246575,-500.0,0.00013698,2]
[324837710,1714366246588,-2333.44,0.00013698,2]
[324837711,1714366246601,-677.67,0.00013698,2]
[324837712,1714366246614,-588.76981751,0.00013698,2]
[324837713,1714366246632,-7698.98018249,0.00013698,2]
[324837714,1714366246648,-500.0,0.00013698,2]
[324837715,1714366246661,-500.0,0.00013698,2]
[324837716,1714366246672,-1530.06,0.00013698,2]
[324837717,1714366246683,-500.0,0.00013698,2]
[324837718,1714366246696,-500.0,0.00013698,2]
[324837719,1714366246711,-500.0,0.00013698,2]
[324837720,1714366246722,-1084.15,0.00013698,2]
[324837721,1714366246733,-500.0,0.00013698,2]